[Event "Early-Titled-Tuesday-Blitz-May-28-2024"]
[Site "Chess.com"]
[Date "2024.05.28"]
[Round "6"]
[White "LuisFSiles"]
[Black "JonasEilenberg"]
[Result "0-1"]
[WhiteElo "2386"]
[BlackElo "2607"]
[TimeControl "180+1"]
[EndTime "9:07:48 PDT"]
[Termination "JonasEilenberg won by checkmate"]

1. e4 {[%clk 0:03:00.9]} 1... c5 {[%clk 0:03:00]} 2. Nf3 {[%clk 0:03:00.5]} 2...
Nc6 {[%clk 0:03:00.6]} 3. c3 {[%clk 0:03:00.3]} 3... Nf6 {[%clk 0:03:00.4]} 4.
e5 {[%clk 0:03:00.5]} 4... Nd5 {[%clk 0:03:01.1]} 5. d4 {[%clk 0:03:00.8]} 5...
cxd4 {[%clk 0:03:02]} 6. cxd4 {[%clk 0:03:01.1]} 6... d6 {[%clk 0:03:02]} 7. Bc4
{[%clk 0:03:00.5]} 7... Nb6 {[%clk 0:03:02.3]} 8. Bb5 {[%clk 0:02:59.8]} 8...
Bd7 {[%clk 0:03:01.9]} 9. exd6 {[%clk 0:02:56.1]} 9... e6 {[%clk 0:03:02.1]} 10.
Bg5 {[%clk 0:02:55.2]} 10... f6 {[%clk 0:03:01.8]} 11. Be3 {[%clk 0:02:45.6]}
11... Bxd6 {[%clk 0:02:58.6]} 12. Nc3 {[%clk 0:02:43.8]} 12... Nb4 {[%clk
0:02:57.1]} 13. Be2 {[%clk 0:02:37.7]} 13... N4d5 {[%clk 0:02:53.3]} 14. O-O
{[%clk 0:02:35.1]} 14... O-O {[%clk 0:02:53.2]} 15. Re1 {[%clk 0:02:28.7]} 15...
Rc8 {[%clk 0:02:51.5]} 16. Bd3 {[%clk 0:02:27]} 16... Nxc3 {[%clk 0:02:39]} 17.
bxc3 {[%clk 0:02:24.2]} 17... Rxc3 {[%clk 0:02:39.6]} 18. Rc1 {[%clk 0:01:54]}
18... Rxc1 {[%clk 0:02:36.4]} 19. Qxc1 {[%clk 0:01:53.4]} 19... Nd5 {[%clk
0:02:34.6]} 20. Bd2 {[%clk 0:01:51.4]} 20... Qc7 {[%clk 0:02:24]} 21. Qb1 {[%clk
0:01:51.2]} 21... f5 {[%clk 0:02:05.2]} 22. Ne5 {[%clk 0:01:45.9]} 22... Bxe5
{[%clk 0:01:50.6]} 23. Rxe5 {[%clk 0:01:44.2]} 23... Qb6 {[%clk 0:01:41.9]} 24.
Qa1 {[%clk 0:01:24.5]} 24... Qd6 {[%clk 0:01:11.4]} 25. g3 {[%clk 0:01:17.2]}
25... Rc8 {[%clk 0:01:11.4]} 26. Qe1 {[%clk 0:01:14]} 26... g6 {[%clk
0:01:07.6]} 27. h4 {[%clk 0:01:13.3]} 27... Qb6 {[%clk 0:00:58.6]} 28. h5 {[%clk
0:00:43.8]} 28... Qxd4 {[%clk 0:00:54]} 29. hxg6 {[%clk 0:00:42.8]} 29... Qxd3
{[%clk 0:00:49.6]} 30. gxh7+ {[%clk 0:00:40.9]} 30... Kxh7 {[%clk 0:00:41.2]}
31. Rxe6 {[%clk 0:00:38.5]} 31... Bxe6 {[%clk 0:00:29.6]} 32. Qxe6 {[%clk
0:00:38.2]} 32... Rc7 {[%clk 0:00:28.3]} 33. Qh6+ {[%clk 0:00:35.9]} 33... Kg8
{[%clk 0:00:28.4]} 34. Qg6+ {[%clk 0:00:35]} 34... Kf8 {[%clk 0:00:20.7]} 35.
Bh6+ {[%clk 0:00:24.4]} 35... Ke7 {[%clk 0:00:20.9]} 36. Bg5+ {[%clk 0:00:22.3]}
36... Kd7 {[%clk 0:00:20.3]} 37. Qf7+ {[%clk 0:00:17.1]} 37... Kc6 {[%clk
0:00:20.5]} 38. Qe6+ {[%clk 0:00:17.1]} 38... Kb5 {[%clk 0:00:20.9]} 39. Qd6
{[%clk 0:00:06.4]} 39... Qb1+ {[%clk 0:00:16.8]} 40. Kh2 {[%clk 0:00:05.5]}
40... Rh7+ {[%clk 0:00:16.8]} 41. Bh4 {[%clk 0:00:04.7]} 41... Rxh4+ {[%clk
0:00:15.8]} 42. gxh4 {[%clk 0:00:04.3]} 42... Qe4 {[%clk 0:00:16.7]} 43. Qd7+
{[%clk 0:00:02.9]} 43... Kc4 {[%clk 0:00:16.8]} 44. Qxb7 {[%clk 0:00:02.1]}
44... Qxh4+ {[%clk 0:00:16.4]} 45. Kg1 {[%clk 0:00:01.5]} 45... Qg4+ {[%clk
0:00:16.7]} 46. Kf1 {[%clk 0:00:01.3]} 46... Qd1+ {[%clk 0:00:16.3]} 47. Kg2
{[%clk 0:00:01.7]} 47... Qg4+ {[%clk 0:00:16.9]} 48. Kf1 {[%clk 0:00:01.7]}
48... Nf4 {[%clk 0:00:16.9]} 49. Qc7+ {[%clk 0:00:01]} 49... Kd5 {[%clk
0:00:16.4]} 50. Qd7+ {[%clk 0:00:01.9]} 50... Ke4 {[%clk 0:00:16.7]} 51. Qd2
{[%clk 0:00:01]} 51... Qg2+ {[%clk 0:00:16.3]} 52. Ke1 {[%clk 0:00:01.3]} 52...
Qg1# {[%clk 0:00:17.2]} 0-1

[Event "Early-Titled-Tuesday-Blitz-May-28-2024"]
[Site "Chess.com"]
[Date "2024.05.28"]
[Round "6"]
[White "Engima32"]
[Black "MiguelBestard1981"]
[Result "1-0"]
[WhiteElo "2502"]
[BlackElo "2275"]
[TimeControl "180+1"]
[EndTime "9:07:48 PDT"]
[Termination "Engima32 won on time"]

1. Nf3 {[%clk 0:02:59.6]} 1... d5 {[%clk 0:02:59.7]} 2. g3 {[%clk 0:02:59.7]}
2... Bf5 {[%clk 0:02:58.8]} 3. Bg2 {[%clk 0:02:59.5]} 3... e6 {[%clk 0:02:56.7]}
4. d4 {[%clk 0:02:59.8]} 4... h6 {[%clk 0:02:56.1]} 5. O-O {[%clk 0:02:59.2]}
5... c6 {[%clk 0:02:56]} 6. c4 {[%clk 0:02:59.5]} 6... Nd7 {[%clk 0:02:55.4]} 7.
Nc3 {[%clk 0:03:00.1]} 7... Ngf6 {[%clk 0:02:54.5]} 8. Qb3 {[%clk 0:02:58.5]}
8... Qb6 {[%clk 0:02:53.5]} 9. c5 {[%clk 0:02:58.4]} 9... Qxb3 {[%clk
0:02:53.4]} 10. axb3 {[%clk 0:02:59.3]} 10... a6 {[%clk 0:02:53.3]} 11. b4
{[%clk 0:03:00.2]} 11... Rc8 {[%clk 0:02:52.7]} 12. Nd2 {[%clk 0:02:59.9]} 12...
Be7 {[%clk 0:02:52.3]} 13. Nb3 {[%clk 0:03:00.2]} 13... Bd8 {[%clk 0:02:50.7]}
14. Bf4 {[%clk 0:03:00.5]} 14... Bc7 {[%clk 0:02:49.5]} 15. Bxc7 {[%clk
0:02:49.1]} 15... Rxc7 {[%clk 0:02:49]} 16. b5 {[%clk 0:02:49.6]} 16... O-O
{[%clk 0:02:33.6]} 17. bxa6 {[%clk 0:02:20.5]} 17... bxa6 {[%clk 0:02:31.7]} 18.
Nd2 {[%clk 0:02:02.5]} 18... Rb8 {[%clk 0:02:26.9]} 19. b3 {[%clk 0:02:02.1]}
19... e5 {[%clk 0:02:17.6]} 20. e3 {[%clk 0:01:59.3]} 20... exd4 {[%clk
0:02:07]} 21. exd4 {[%clk 0:01:59.2]} 21... Nf8 {[%clk 0:02:05.2]} 22. Rfe1
{[%clk 0:01:58.6]} 22... Ne6 {[%clk 0:02:04.1]} 23. Ne2 {[%clk 0:01:12.4]} 23...
Bd3 {[%clk 0:02:02.9]} 24. Nc1 {[%clk 0:01:12.6]} 24... Bb5 {[%clk 0:02:01.4]}
25. Nf3 {[%clk 0:01:12.4]} 25... Ne4 {[%clk 0:01:59.5]} 26. Bf1 {[%clk
0:01:05.4]} 26... Kf8 {[%clk 0:01:33.6]} 27. Bxb5 {[%clk 0:01:03.5]} 27... axb5
{[%clk 0:01:32.3]} 28. Nd3 {[%clk 0:01:03.6]} 28... Rcc8 {[%clk 0:01:21.7]} 29.
Nb4 {[%clk 0:01:03.6]} 29... Nd8 {[%clk 0:01:03.4]} 30. Ne5 {[%clk 0:01:01.4]}
30... f6 {[%clk 0:01:03.5]} 31. Nd7+ {[%clk 0:01:01.6]} 31... Kf7 {[%clk
0:01:02.9]} 32. Nxb8 {[%clk 0:01:02.1]} 32... Rxb8 {[%clk 0:01:02.7]} 33. f3
{[%clk 0:01:02.6]} 33... Ng5 {[%clk 0:00:59]} 34. Ra7+ {[%clk 0:01:01.7]} 34...
Kg6 {[%clk 0:00:58.3]} 35. Kg2 {[%clk 0:00:59.2]} 35... Nge6 {[%clk 0:00:55.4]}
36. Rd1 {[%clk 0:00:51.8]} 36... Rc8 {[%clk 0:00:42.5]} 37. Kf2 {[%clk
0:00:48.6]} 37... Rc7 {[%clk 0:00:42.6]} 38. Rxc7 {[%clk 0:00:48.1]} 38... Nxc7
{[%clk 0:00:43.5]} 39. Ke3 {[%clk 0:00:47.2]} 39... Kf7 {[%clk 0:00:36.9]} 40.
Kd3 {[%clk 0:00:47.1]} 40... Ke7 {[%clk 0:00:36.8]} 41. Re1+ {[%clk 0:00:47]}
41... Kd7 {[%clk 0:00:36.8]} 42. f4 {[%clk 0:00:43.5]} 42... g6 {[%clk
0:00:31.1]} 43. g4 {[%clk 0:00:42.5]} 43... Nf7 {[%clk 0:00:27]} 44. h4 {[%clk
0:00:41.2]} 44... Ne6 {[%clk 0:00:17.9]} 45. f5 {[%clk 0:00:37.2]} 45... Nf4+
{[%clk 0:00:15.9]} 46. Kc3 {[%clk 0:00:34.1]} 46... g5 {[%clk 0:00:15.6]} 47. h5
{[%clk 0:00:31]} 47... Nd8 {[%clk 0:00:10.6]} 48. Ra1 {[%clk 0:00:30]} 48...
Ne2+ {[%clk 0:00:09.1]} 49. Kd3 {[%clk 0:00:29.3]} 49... Nf4+ {[%clk 0:00:09.1]}
50. Kd2 {[%clk 0:00:29.3]} 50... Kc7 {[%clk 0:00:04.2]} 51. Ra7+ {[%clk
0:00:29]} 51... Nb7 {[%clk 0:00:03.8]} 52. Na6+ {[%clk 0:00:28.6]} 52... Kc8
{[%clk 0:00:03.1]} 53. Ra8+ {[%clk 0:00:28.8]} 53... Kd7 {[%clk 0:00:03]} 54.
Rh8 {[%clk 0:00:28]} 1-0

[Event "Early-Titled-Tuesday-Blitz-May-28-2024"]
[Site "Chess.com"]
[Date "2024.05.28"]
[Round "6"]
[White "Bilan_Danila"]
[Black "Sl4werThanYou"]
[Result "0-1"]
[WhiteElo "2542"]
[BlackElo "2737"]
[TimeControl "180+1"]
[EndTime "9:07:50 PDT"]
[Termination "Sl4werThanYou won by resignation"]

1. d4 {[%clk 0:03:00.9]} 1... Nf6 {[%clk 0:02:58.2]} 2. Nf3 {[%clk 0:03:00.8]}
2... e6 {[%clk 0:02:57.6]} 3. g3 {[%clk 0:02:59.8]} 3... d5 {[%clk 0:02:54.3]}
4. Bg2 {[%clk 0:02:59.7]} 4... Bd6 {[%clk 0:02:44.5]} 5. O-O {[%clk 0:03:00.6]}
5... h6 {[%clk 0:02:44.5]} 6. c4 {[%clk 0:03:00.6]} 6... O-O {[%clk 0:02:44.7]}
7. Qc2 {[%clk 0:03:00.1]} 7... Nc6 {[%clk 0:02:44.3]} 8. Nbd2 {[%clk 0:02:58.6]}
8... b6 {[%clk 0:02:43.2]} 9. e4 {[%clk 0:02:55.9]} 9... dxe4 {[%clk 0:02:30.9]}
10. Nxe4 {[%clk 0:02:56.8]} 10... Bb7 {[%clk 0:02:31.2]} 11. Nxd6 {[%clk
0:02:48.6]} 11... cxd6 {[%clk 0:02:30.5]} 12. Bf4 {[%clk 0:02:41.3]} 12... Rc8
{[%clk 0:02:29.5]} 13. b3 {[%clk 0:02:40.2]} 13... d5 {[%clk 0:02:26.8]} 14.
Rac1 {[%clk 0:01:55.4]} 14... dxc4 {[%clk 0:02:21.5]} 15. bxc4 {[%clk 0:01:54]}
15... Na5 {[%clk 0:02:00.8]} 16. Qe2 {[%clk 0:01:31.1]} 16... Ba6 {[%clk
0:01:36.8]} 17. Ne5 {[%clk 0:01:25.4]} 17... Qxd4 {[%clk 0:01:35.8]} 18. Rfd1
{[%clk 0:01:09.1]} 18... Qc5 {[%clk 0:01:36.1]} 19. Nd3 {[%clk 0:01:00.2]} 19...
Bxc4 {[%clk 0:01:09.4]} 20. Qf3 {[%clk 0:00:27.9]} 20... Qa3 {[%clk 0:01:05.2]}
21. Ne5 {[%clk 0:00:05]} 21... Qxf3 {[%clk 0:01:06.1]} 22. Bxf3 {[%clk
0:00:04.2]} 22... Bxa2 {[%clk 0:01:06.4]} 23. Ra1 {[%clk 0:00:03]} 23... Bd5
{[%clk 0:01:06.5]} 24. Be2 {[%clk 0:00:01.4]} 24... Nb3 {[%clk 0:01:06.3]} 25.
Rxa7 {[%clk 0:00:01.2]} 25... Ne4 {[%clk 0:01:07.2]} 26. Bf3 {[%clk 0:00:01.2]}
26... Nc3 {[%clk 0:01:07.3]} 27. Bxd5 {[%clk 0:00:01]} 27... Nxd5 {[%clk
0:01:06.3]} 28. Rf1 {[%clk 0:00:01.2]} 28... Nxf4 {[%clk 0:01:04.8]} 29. gxf4
{[%clk 0:00:02.1]} 29... Nc5 {[%clk 0:01:05.7]} 30. Re7 {[%clk 0:00:01.9]} 30...
b5 {[%clk 0:01:04.1]} 31. Ra7 {[%clk 0:00:01.9]} 31... b4 {[%clk 0:01:04.5]} 32.
Rb1 {[%clk 0:00:02.1]} 32... b3 {[%clk 0:01:05.4]} 33. Ra5 {[%clk 0:00:01.6]}
33... Rfd8 {[%clk 0:01:03.7]} 34. Kg2 {[%clk 0:00:01.7]} 34... Rd2 {[%clk
0:01:02.8]} 35. Rb5 {[%clk 0:00:01.9]} 35... Ne4 {[%clk 0:01:02.6]} 36. R5xb3
{[%clk 0:00:01.8]} 36... Rxf2+ {[%clk 0:01:03.3]} 37. Kh3 {[%clk 0:00:01.9]}
37... Rxf4 {[%clk 0:01:04.2]} 38. Rb8 {[%clk 0:00:01.5]} 38... Rxb8 {[%clk
0:01:01.4]} 39. Rxb8+ {[%clk 0:00:02.4]} 39... Kh7 {[%clk 0:01:02.1]} 40. Nd7
{[%clk 0:00:03.3]} 40... g5 {[%clk 0:01:01.7]} 41. Nf8+ {[%clk 0:00:04.2]} 41...
Kg7 {[%clk 0:01:02]} 42. Nd7 {[%clk 0:00:04.5]} 42... h5 {[%clk 0:01:01.5]} 43.
Kg2 {[%clk 0:00:04.7]} 43... Rf2+ {[%clk 0:01:01.5]} 44. Kg1 {[%clk 0:00:05.4]}
44... Rd2 {[%clk 0:01:01.7]} 45. Rb7 {[%clk 0:00:05.5]} 45... Nd6 {[%clk
0:01:00.3]} 46. Ra7 {[%clk 0:00:05.5]} 46... Rd5 {[%clk 0:00:58]} 47. Nb6 {[%clk
0:00:03]} 47... Rd1+ {[%clk 0:00:58.5]} 48. Kg2 {[%clk 0:00:03]} 48... h4 {[%clk
0:00:59.4]} 49. Nd7 {[%clk 0:00:01.8]} 49... Nb5 {[%clk 0:00:56.5]} 50. Rb7
{[%clk 0:00:01.3]} 50... Nd6 {[%clk 0:00:57.1]} 51. Ra7 {[%clk 0:00:01.5]} 51...
Rd2+ {[%clk 0:00:58]} 52. Kh3 {[%clk 0:00:01.2]} 52... Nc4 {[%clk 0:00:56]} 53.
Nc5 {[%clk 0:00:01.3]} 53... Kf6 {[%clk 0:00:54.8]} 54. Nd7+ {[%clk 0:00:01.6]}
54... Kf5 {[%clk 0:00:54.9]} 55. Nf8 {[%clk 0:00:02.1]} 55... f6 {[%clk
0:00:53.6]} 56. Rc7 {[%clk 0:00:02.4]} 56... Ne5 {[%clk 0:00:52.8]} 57. Nh7
{[%clk 0:00:02.5]} 57... Rd3+ {[%clk 0:00:50.1]} 58. Kg2 {[%clk 0:00:01.8]}
58... h3+ {[%clk 0:00:51]} 59. Kf2 {[%clk 0:00:02.1]} 59... Ng4+ {[%clk
0:00:51.9]} 60. Ke2 {[%clk 0:00:02.3]} 60... Re3+ {[%clk 0:00:52.6]} 61. Kd2
{[%clk 0:00:02.3]} 61... Re5 {[%clk 0:00:53.5]} 62. Rc3 {[%clk 0:00:01.4]} 62...
Nxh2 {[%clk 0:00:52.8]} 63. Rxh3 {[%clk 0:00:02]} 63... Nf1+ {[%clk 0:00:53.7]}
64. Kc3 {[%clk 0:00:01.4]} 64... g4 {[%clk 0:00:54]} 65. Rh5+ {[%clk 0:00:01.3]}
65... Kf4 {[%clk 0:00:53.8]} 66. Rxe5 {[%clk 0:00:02.2]} 66... Kxe5 {[%clk
0:00:54.7]} 67. Nf8 {[%clk 0:00:02.7]} 67... g3 {[%clk 0:00:54.9]} 68. Ng6+
{[%clk 0:00:02.3]} 68... Ke4 {[%clk 0:00:55.3]} 69. Nh4 {[%clk 0:00:03.2]} 69...
Ne3 {[%clk 0:00:55.6]} 70. Kd2 {[%clk 0:00:03.4]} 70... g2 {[%clk 0:00:55.8]}
71. Nxg2 {[%clk 0:00:04.3]} 71... Nxg2 {[%clk 0:00:56.6]} 72. Ke2 {[%clk
0:00:05.2]} 72... Nf4+ {[%clk 0:00:57.4]} 0-1

[Event "Early-Titled-Tuesday-Blitz-May-28-2024"]
[Site "Chess.com"]
[Date "2024.05.28"]
[Round "6"]
[White "GMthekingindian"]
[Black "Kotofeyca"]
[Result "0-1"]
[WhiteElo "2349"]
[BlackElo "2517"]
[TimeControl "180+1"]
[EndTime "9:07:51 PDT"]
[Termination "Kotofeyca won on time"]

1. d4 {[%clk 0:02:56.3]} 1... d5 {[%clk 0:02:59.7]} 2. Nf3 {[%clk 0:02:56.7]}
2... c6 {[%clk 0:02:59.4]} 3. g3 {[%clk 0:02:56.8]} 3... Bg4 {[%clk 0:02:58.6]}
4. Bg2 {[%clk 0:02:57.5]} 4... Nd7 {[%clk 0:02:59.2]} 5. c4 {[%clk 0:02:57.7]}
5... e6 {[%clk 0:02:59.5]} 6. Nc3 {[%clk 0:02:57.5]} 6... Bd6 {[%clk 0:02:59.6]}
7. Qb3 {[%clk 0:02:54]} 7... Rb8 {[%clk 0:02:58.5]} 8. e4 {[%clk 0:02:44]} 8...
dxe4 {[%clk 0:02:30.8]} 9. Nxe4 {[%clk 0:02:43.6]} 9... Bc7 {[%clk 0:02:30.9]}
10. O-O {[%clk 0:02:29.7]} 10... Ndf6 {[%clk 0:02:30.6]} 11. Nc5 {[%clk
0:02:14.1]} 11... Bxf3 {[%clk 0:02:06.1]} 12. Qxf3 {[%clk 0:02:05.3]} 12... Qxd4
{[%clk 0:01:36.1]} 13. Nxb7 {[%clk 0:02:03.3]} 13... Ne7 {[%clk 0:01:33]} 14.
Be3 {[%clk 0:02:01.1]} 14... Qxc4 {[%clk 0:01:32.2]} 15. Nc5 {[%clk 0:01:50.5]}
15... Rxb2 {[%clk 0:01:14.7]} 16. Rfc1 {[%clk 0:01:48.9]} 16... Rc2 {[%clk
0:01:10.6]} 17. Nb3 {[%clk 0:01:36.9]} 17... O-O {[%clk 0:01:04.1]} 18. Bxa7
{[%clk 0:01:32.1]} 18... Be5 {[%clk 0:00:50.2]} 19. Rab1 {[%clk 0:01:29.5]}
19... Ned5 {[%clk 0:00:34.6]} 20. Bf1 {[%clk 0:01:21.7]} 20... Rxc1 {[%clk
0:00:33.2]} 21. Rxc1 {[%clk 0:01:22.2]} 21... Qa4 {[%clk 0:00:30.6]} 22. Bc5
{[%clk 0:01:16.5]} 22... Ra8 {[%clk 0:00:19.8]} 23. a3 {[%clk 0:01:14.1]} 23...
Rb8 {[%clk 0:00:17.9]} 24. Nd2 {[%clk 0:01:07.1]} 24... h6 {[%clk 0:00:15.5]}
25. Nc4 {[%clk 0:01:04.6]} 25... Bc7 {[%clk 0:00:13]} 26. Bd3 {[%clk 0:00:53.9]}
26... Rb3 {[%clk 0:00:13]} 27. Qd1 {[%clk 0:00:54.5]} 27... Qb5 {[%clk
0:00:09.2]} 28. Bc2 {[%clk 0:00:49.7]} 28... Rc3 {[%clk 0:00:07.3]} 29. Nd6
{[%clk 0:00:28.2]} 29... Qxc5 {[%clk 0:00:06.8]} 30. Ne4 {[%clk 0:00:28.8]}
30... Qc4 {[%clk 0:00:06.9]} 31. Nxc3 {[%clk 0:00:29]} 31... Nxc3 {[%clk
0:00:06.8]} 32. Qf1 {[%clk 0:00:23.4]} 32... Ne2+ {[%clk 0:00:06.5]} 33. Kg2
{[%clk 0:00:21.5]} 33... Qd5+ {[%clk 0:00:06.6]} 34. f3 {[%clk 0:00:19.6]} 34...
Nxc1 {[%clk 0:00:07.5]} 35. Qxc1 {[%clk 0:00:20.3]} 35... Qb5 {[%clk 0:00:05.3]}
36. a4 {[%clk 0:00:20.5]} 36... Qa5 {[%clk 0:00:04.8]} 37. Qb2 {[%clk 0:00:20]}
37... Nd5 {[%clk 0:00:05.7]} 38. Bb1 {[%clk 0:00:19]} 38... g6 {[%clk
0:00:06.1]} 39. h3 {[%clk 0:00:09.6]} 39... Qxa4 {[%clk 0:00:05.9]} 40. Bc2
{[%clk 0:00:08.3]} 40... Qb5 {[%clk 0:00:06.4]} 41. Qc1 {[%clk 0:00:05.4]} 41...
Qe2+ {[%clk 0:00:06.3]} 42. Kh1 {[%clk 0:00:04.4]} 42... Bb6 {[%clk 0:00:06.8]}
43. Be4 {[%clk 0:00:01.3]} 43... Qf2 {[%clk 0:00:06.7]} 0-1

[Event "Early-Titled-Tuesday-Blitz-May-28-2024"]
[Site "Chess.com"]
[Date "2024.05.28"]
[Round "6"]
[White "Malev212"]
[Black "eagleclaw07"]
[Result "0-1"]
[WhiteElo "2638"]
[BlackElo "2840"]
[TimeControl "180+1"]
[EndTime "9:07:54 PDT"]
[Termination "eagleclaw07 won on time"]

1. e4 {[%clk 0:02:54.3]} 1... Nf6 {[%clk 0:02:58.3]} 2. e5 {[%clk 0:02:50.8]}
2... Nd5 {[%clk 0:02:58.9]} 3. d4 {[%clk 0:02:50.3]} 3... d6 {[%clk 0:02:59.4]}
4. Nf3 {[%clk 0:02:50.2]} 4... dxe5 {[%clk 0:02:59.3]} 5. Nxe5 {[%clk
0:02:49.1]} 5... c6 {[%clk 0:02:59.6]} 6. Bc4 {[%clk 0:02:47.1]} 6... g6 {[%clk
0:02:57.9]} 7. O-O {[%clk 0:02:45.8]} 7... Bg7 {[%clk 0:02:58.2]} 8. Re1 {[%clk
0:02:45.8]} 8... O-O {[%clk 0:02:58.6]} 9. Bb3 {[%clk 0:02:44.5]} 9... Nd7
{[%clk 0:02:57.9]} 10. Nf3 {[%clk 0:02:43.6]} 10... Re8 {[%clk 0:02:54.6]} 11.
Bg5 {[%clk 0:02:41.5]} 11... h6 {[%clk 0:02:53.4]} 12. Bh4 {[%clk 0:02:40.8]}
12... N7f6 {[%clk 0:02:40.4]} 13. h3 {[%clk 0:02:39.6]} 13... a5 {[%clk
0:02:31.8]} 14. c4 {[%clk 0:02:38]} 14... Nc7 {[%clk 0:02:21.2]} 15. Nc3 {[%clk
0:02:34.7]} 15... g5 {[%clk 0:02:15.4]} 16. Bg3 {[%clk 0:02:32.7]} 16... Bf5
{[%clk 0:02:14.5]} 17. Ne5 {[%clk 0:02:26.3]} 17... Ne6 {[%clk 0:02:12.4]} 18.
c5 {[%clk 0:01:32.3]} 18... Rf8 {[%clk 0:02:05.5]} 19. Nxf7 {[%clk 0:01:19.9]}
19... Kxf7 {[%clk 0:01:50.3]} 20. Qf3 {[%clk 0:01:18.8]} 20... Kg6 {[%clk
0:01:13.9]} 21. Bxe6 {[%clk 0:01:03.1]} 21... Bxe6 {[%clk 0:01:05.8]} 22. Rxe6
{[%clk 0:01:02.6]} 22... Qxd4 {[%clk 0:01:04.9]} 23. Rxe7 {[%clk 0:00:59]} 23...
Nd5 {[%clk 0:00:57.1]} 24. Qe4+ {[%clk 0:00:25.3]} 24... Qxe4 {[%clk 0:00:55.2]}
25. Rxe4 {[%clk 0:00:25]} 25... Nxc3 {[%clk 0:00:40.7]} 26. bxc3 {[%clk
0:00:23.9]} 26... Rfe8 {[%clk 0:00:36.7]} 27. Rc4 {[%clk 0:00:16.5]} 27... Rad8
{[%clk 0:00:27.7]} 28. Rb1 {[%clk 0:00:14.9]} 28... Rd7 {[%clk 0:00:27]} 29. a4
{[%clk 0:00:14.5]} 29... Re2 {[%clk 0:00:25.8]} 30. Bd6 {[%clk 0:00:12]} 30...
Rf7 {[%clk 0:00:19.5]} 31. f3 {[%clk 0:00:11]} 31... Rc2 {[%clk 0:00:18.7]} 32.
Rb3 {[%clk 0:00:08.8]} 32... h5 {[%clk 0:00:10.7]} 33. Re4 {[%clk 0:00:07.4]}
33... h4 {[%clk 0:00:10.8]} 34. Re3 {[%clk 0:00:05.6]} 34... Bf6 {[%clk
0:00:06.4]} 35. Re4 {[%clk 0:00:05.1]} 35... Kh5 {[%clk 0:00:05.9]} 36. c4
{[%clk 0:00:05]} 36... Ra2 {[%clk 0:00:04.9]} 37. Rg4 {[%clk 0:00:00.9]} 37...
Rxa4 {[%clk 0:00:05.1]} 38. f4 {[%clk 0:00:01]} 38... gxf4 {[%clk 0:00:04.9]}
39. Rxf4 {[%clk 0:00:01]} 39... Rb4 {[%clk 0:00:04.4]} 40. Rbf3 {[%clk
0:00:01.5]} 40... Kg6 {[%clk 0:00:04.2]} 41. Be5 {[%clk 0:00:01]} 41... Bxe5
{[%clk 0:00:03.6]} 42. Rxf7 {[%clk 0:00:01.9]} 42... a4 {[%clk 0:00:02.4]} 43.
Re7 {[%clk 0:00:01]} 43... Bd4+ {[%clk 0:00:02.1]} 44. Kh2 {[%clk 0:00:01.1]}
44... Bxc5 {[%clk 0:00:02.4]} 45. Re2 {[%clk 0:00:00.7]} 45... Kg7 {[%clk
0:00:03.3]} 0-1

[Event "Early-Titled-Tuesday-Blitz-May-28-2024"]
[Site "Chess.com"]
[Date "2024.05.28"]
[Round "6"]
[White "Iskusnyh"]
[Black "ccccvhhhj"]
[Result "1-0"]
[WhiteElo "2617"]
[BlackElo "2465"]
[TimeControl "180+1"]
[EndTime "9:07:55 PDT"]
[Termination "Iskusnyh won on time"]

1. d4 {[%clk 0:03:00.9]} 1... Nf6 {[%clk 0:02:58.5]} 2. c4 {[%clk 0:03:00.2]}
2... e6 {[%clk 0:02:58.7]} 3. g3 {[%clk 0:03:00.4]} 3... d5 {[%clk 0:02:59.1]}
4. Bg2 {[%clk 0:02:59.6]} 4... c6 {[%clk 0:02:51.8]} 5. Nf3 {[%clk 0:02:57.5]}
5... g6 {[%clk 0:02:47.3]} 6. b3 {[%clk 0:02:53.9]} 6... Bg7 {[%clk 0:02:47.5]}
7. Ba3 {[%clk 0:02:53.9]} 7... a5 {[%clk 0:02:44.6]} 8. O-O {[%clk 0:02:51.1]}
8... Na6 {[%clk 0:02:45.2]} 9. Nbd2 {[%clk 0:02:11.4]} 9... Nb4 {[%clk
0:02:44.7]} 10. Ne5 {[%clk 0:02:11.6]} 10... O-O {[%clk 0:02:42.5]} 11. Nd3
{[%clk 0:02:10.8]} 11... Qb6 {[%clk 0:02:21.6]} 12. Nxb4 {[%clk 0:02:00.4]}
12... axb4 {[%clk 0:02:21.8]} 13. Bb2 {[%clk 0:02:01]} 13... Rd8 {[%clk
0:02:01.9]} 14. c5 {[%clk 0:01:58.5]} 14... Qc7 {[%clk 0:02:00.1]} 15. f4 {[%clk
0:01:51.9]} 15... Ng4 {[%clk 0:01:44]} 16. Rf3 {[%clk 0:01:44.5]} 16... b6
{[%clk 0:01:44.4]} 17. h3 {[%clk 0:01:33]} 17... bxc5 {[%clk 0:01:34.9]} 18.
hxg4 {[%clk 0:01:31.4]} 18... cxd4 {[%clk 0:01:35.6]} 19. a4 {[%clk 0:01:12.9]}
19... c5 {[%clk 0:01:31.9]} 20. Rc1 {[%clk 0:01:12.4]} 20... Qb6 {[%clk
0:01:29.8]} 21. Rf2 {[%clk 0:01:06.3]} 21... Ba6 {[%clk 0:01:29.5]} 22. Nf3
{[%clk 0:01:02]} 22... Rac8 {[%clk 0:01:15.1]} 23. g5 {[%clk 0:01:00.5]} 23...
Qd6 {[%clk 0:00:26.6]} 24. Qd2 {[%clk 0:00:51.3]} 24... Rc7 {[%clk 0:00:25.9]}
25. Rff1 {[%clk 0:00:43.6]} 25... Rdc8 {[%clk 0:00:23.6]} 26. Rfd1 {[%clk
0:00:42.8]} 26... Qb6 {[%clk 0:00:20.6]} 27. Kh2 {[%clk 0:00:40.3]} 27... Qd6
{[%clk 0:00:13.4]} 28. Bh3 {[%clk 0:00:36.4]} 28... Rc6 {[%clk 0:00:11.5]} 29.
Rc2 {[%clk 0:00:33.7]} 29... R6c7 {[%clk 0:00:11.4]} 30. Rdc1 {[%clk 0:00:32.9]}
30... Qb6 {[%clk 0:00:11]} 31. Ne5 {[%clk 0:00:31.4]} 31... Qd6 {[%clk
0:00:09.1]} 32. Ng4 {[%clk 0:00:26.4]} 32... e5 {[%clk 0:00:04.8]} 33. Nxe5
{[%clk 0:00:23.8]} 33... Bxe5 {[%clk 0:00:05.7]} 34. fxe5 {[%clk 0:00:24]} 34...
Qxe5 {[%clk 0:00:06.6]} 35. Bxc8 {[%clk 0:00:24.1]} 35... Rxc8 {[%clk
0:00:06.9]} 36. Bxd4 {[%clk 0:00:21.6]} 36... Qe4 {[%clk 0:00:01.8]} 37. Rxc5
{[%clk 0:00:17.6]} 37... Re8 {[%clk 0:00:02.3]} 38. e3 {[%clk 0:00:15.7]} 38...
Qg4 {[%clk 0:00:02.2]} 39. Qf2 {[%clk 0:00:14.6]} 39... Qh5+ {[%clk 0:00:02]}
40. Kg1 {[%clk 0:00:15.2]} 40... Qxg5 {[%clk 0:00:02.9]} 41. Qf4 {[%clk
0:00:13.9]} 41... Qe7 {[%clk 0:00:01.8]} 42. Rc7 {[%clk 0:00:13.7]} 42... Qe6
{[%clk 0:00:02.6]} 43. Qf6 {[%clk 0:00:13.3]} 43... Qxf6 {[%clk 0:00:02.5]} 44.
Bxf6 {[%clk 0:00:14.2]} 44... Bd3 {[%clk 0:00:01.6]} 45. Rc8 {[%clk 0:00:14]}
45... Kf8 {[%clk 0:00:02.3]} 46. Bg7+ {[%clk 0:00:13.3]} 46... Kxg7 {[%clk
0:00:02.4]} 47. Rxe8 {[%clk 0:00:11.8]} 47... Be4 {[%clk 0:00:03.3]} 48. Rxe4
{[%clk 0:00:11.6]} 48... dxe4 {[%clk 0:00:04.2]} 49. a5 {[%clk 0:00:12.3]} 1-0